bitfinex-derivatives/quotes_ETHF0:USTF0_20250701
["timestamp","ask_amount","ask_price","bid_price","bid_amount"]
[1751409744118,1.3756,2411.1,2411.0,3.12493364]
[1751409744619,1.3756,2411.1,2411.0,3.95434364]
[1751409744818,1.3756,2411.1,2411.0,3.12493364]
[1751409745018,2.20497,2411.1,2411.0,3.12493364]
[1751409746022,1.3756,2411.1,2411.0,3.12493364]
[1751409746324,1.3756,2411.1,2411.0,3.95434364]
[1751409746622,1.3756,2411.1,2411.0,3.12493364]
[1751409747419,1.3756,2411.1,2411.0,3.95434364]
[1751409748425,1.3756,2411.1,2411.0,3.12493364]
[1751409750027,1.3756,2411.1,2411.0,3.95434364]
[1751409750423,1.3756,2411.1,2411.0,3.12493364]
[1751409751818,60.54814,2411.8,2411.5,0.82921]
[1751409752127,84.927,2411.8,2411.7,2.42463364]
[1751409752328,86.2829,2411.8,2411.7,2.42463364]
[1751409752628,86.2829,2411.8,2411.7,3.25380364]
[1751409753428,61.0749,2411.8,2411.7,2.42463364]
[1751409753830,86.2829,2411.8,2411.7,2.42463364]
[1751409754030,61.0749,2411.8,2411.7,2.42463364]
[1751409754228,86.2829,2411.8,2411.7,2.42463364]
[1751409754435,61.0749,2411.8,2411.7,2.42463364]
[1751409754622,86.2819,2411.8,2411.7,2.42463364]
[1751409755228,61.0749,2411.8,2411.7,3.25380364]
[1751409755427,86.2819,2411.8,2411.7,3.25380364]
[1751409759530,61.0749,2411.8,2411.7,3.25380364]
[1751409759731,86.2789,2411.8,2411.7,3.25380364]
[1751409760333,61.0749,2411.8,2411.7,2.42463364]
[1751409760533,86.2789,2411.8,2411.7,2.42463364]
[1751409760930,61.0749,2411.8,2411.7,2.42463364]
[1751409761133,86.2789,2411.8,2411.7,3.25380364]
[1751409761432,86.2789,2411.8,2411.3,0.6771]
[1751409761631,2.27168,2411.7,2411.5,2.42463364]
[1751409761829,26.6455,2411.6,2411.5,3.25385364]
[1751409762631,26.6455,2411.6,2411.5,2.42463364]
[1751409764239,26.6455,2411.6,2411.5,3.25386364]
[1751409764639,26.6455,2411.6,2411.5,2.42463364]
[1751409765936,26.6455,2411.6,2411.5,3.25386364]
[1751409766235,26.6455,2411.6,2411.5,2.42463364]
[1751409767039,26.6455,2411.6,2411.5,3.25386364]
[1751409767735,26.6455,2411.6,2411.5,2.42463364]
[1751409768434,26.6455,2411.6,2411.5,3.25386364]
[1751409769940,25.203,2411.6,2411.5,3.25386364]
[1751409772036,25.201,2411.7,2411.6,0.8292]
[1751409772236,25.201,2411.7,2411.6,3.25383364]
[1751409772432,84.92,2411.8,2411.7,0.82917]
[1751409775239,0.6798,2412.2,2411.8,0.82912]
[1751409775434,0.82908,2412.0,2411.8,0.82912]
[1751409775635,12.54205,2412.1,2411.9,2.42463364]
[1751409775834,13.94305,2412.1,2411.9,2.42463364]
[1751409776035,25.199,2412.0,2411.9,2.42463364]
[1751409776434,25.199,2412.0,2411.9,3.25373364]
[1751409776640,25.199,2412.0,2411.9,2.42463364]
[1751409776838,25.199,2412.0,2411.9,3.25373364]
[1751409777140,13.94305,2412.1,2411.9,3.25373364]
[1751409777340,13.114,2412.1,2412.0,0.82906]
[1751409777641,38.313,2412.1,2412.0,0.82906]
[1751409779443,39.14203,2412.1,2412.0,0.82906]
[1751409780348,39.14203,2412.1,2411.9,3.25370364]
[1751409781043,39.14203,2412.1,2411.9,0.82907]
[1751409781246,39.14203,2412.1,2412.0,2.42463364]
[1751409783438,2.07267,2412.0,2410.7,15.32611717]
[1751409783645,0.8292,2411.7,2411.6,3.25382364]
[1751409783942,25.197,2411.7,2411.6,3.25382364]
[1751409784143,2.0413,2411.9,2411.8,0.82913]
[1751409784446,26.5288,2411.9,2411.8,3.25376364]
[1751409785639,27.3579,2411.9,2411.8,2.42463364]
[1751409790046,27.3579,2411.9,2411.8,3.25376364]
[1751409790543,27.3579,2411.9,2411.8,2.42463364]
[1751409790747,0.8292,2411.6,2411.5,3.25385364]
[1751409790945,0.8292,2411.7,2411.5,3.25385364]
[1751409791249,1.4595,2411.6,2411.5,3.25385364]
[1751409792243,25.196,2411.7,2411.6,0.8292]
[1751409792449,1.4595,2411.9,2411.8,0.82913]
[1751409792748,26.6555,2411.9,2411.8,3.25376364]
[1751409793747,25.196,2411.9,2411.8,3.25376364]
[1751409794551,25.196,2411.9,2411.8,0.82913]
[1751409794750,25.196,2411.9,2411.8,3.25376364]
[1751409794950,26.6194,2411.9,2411.8,3.25376364]
[1751409795352,27.4485,2411.9,2411.8,2.42463364]
[1751409795553,28.1524,2411.9,2411.8,2.42463364]
[1751409796544,29.39608,2411.9,2411.6,2.42463364]
[1751409796745,0.82917,2411.7,2411.6,2.42463364]
[1751409797050,26.02417,2411.7,2411.6,2.42463364]
[1751409798153,25.195,2411.7,2411.6,3.25383364]
[1751409798353,0.82922,2411.6,2411.4,3.92448364]
[1751409798651,25.195,2411.5,2411.2,2.42463364]
[1751409798850,0.8293,2411.3,2411.2,2.42463364]
[1751409799552,2.2196,2411.3,2411.2,2.42463364]
[1751409799753,26.5853,2411.3,2411.2,2.42463364]
[1751409800349,27.4146,2411.3,2411.2,2.42463364]
[1751409801752,27.4146,2411.3,2411.0,0.82938]
[1751409801958,2.0529,2411.2,2411.0,0.82938]
[1751409802457,2.88224,2411.2,2411.0,0.82938]
[1751409802648,2.0529,2411.2,2411.1,0.82937]
[1751409802850,2.88224,2411.2,2411.0,0.82939]
[1751409803153,2.0529,2411.2,2411.1,2.42463364]
[1751409803353,2.0529,2411.2,2411.1,3.11953364]
[1751409804559,2.88224,2411.2,2411.1,3.11953364]
[1751409805861,7.0529,2411.2,2410.5,8.28792908]
[1751409806161,0.82961,2410.4,2410.3,3.09213364]
[1751409806363,26.03661,2410.4,2410.3,3.09213364]
[1751409807364,25.207,2410.4,2410.3,3.92178364]
[1751409807565,25.204,2410.5,2410.3,3.92175364]
[1751409809669,25.204,2410.5,2410.3,3.09213364]
[1751409810660,26.03359,2410.5,2410.3,3.09213364]
[1751409812272,26.03359,2410.5,2410.3,3.92177364]
[1751409812570,26.03359,2410.5,2410.3,3.09213364]
[1751409812960,0.82949,2410.8,2410.5,0.82956]
[1751409813271,12.54349,2410.8,2410.7,2.42463364]
[1751409813465,37.74549,2410.8,2410.7,2.42463364]
[1751409814571,0.82946,2410.9,2410.7,2.42463364]
[1751409814771,37.74547,2410.8,2410.7,3.14913364]
[1751409814967,25.202,2410.8,2410.7,3.14913364]
[1751409815165,26.03147,2410.8,2410.7,3.14913364]
[1751409815972,0.82947,2410.8,2410.7,3.14913364]
[1751409816174,26.03247,2410.8,2410.7,3.14913364]
[1751409816874,0.82947,2410.8,2410.7,3.14913364]
[1751409817074,26.03247,2410.8,2410.7,3.14913364]
[1751409818073,26.03247,2410.8,2410.7,3.97864364]
[1751409818571,2.27567,2410.9,2410.7,3.97861364]
[1751409818876,26.03347,2410.8,2410.7,3.14913364]
[1751409819270,26.03347,2410.8,2410.7,3.97864364]
[1751409819577,11.714,2410.9,2410.7,3.14913364]
[1751409819775,11.714,2410.9,2410.8,0.82947]
[1751409828485,59.707,2411.2,2410.8,2.07365]
[1751409828686,59.707,2411.2,2411.1,3.25400364]
[1751409828884,84.91,2411.2,2411.1,3.25400364]
[1751409830286,59.707,2411.2,2411.1,3.25400364]
[1751409830588,84.91,2411.2,2411.1,3.25400364]
[1751409831688,84.909,2411.2,2411.1,3.25400364]
[1751409832784,86.3363,2411.2,2411.1,3.25400364]
[1751409832979,86.3363,2411.2,2410.9,2.42463364]
[1751409833184,2.1753,2411.1,2410.9,0.82943]
[1751409833386,26.5479,2411.0,2410.9,0.82943]
[1751409833586,27.2226,2411.0,2410.9,0.82943]
[1751409835191,27.2226,2411.0,2410.9,0.82944]
[1751409836089,27.2226,2411.0,2410.7,3.14963364]
[1751409836287,1.4207,2410.9,2410.8,0.82945]
[1751409839788,25.8767,2411.0,2410.9,0.82944]
[1751409839789,25.202,2411.0,2410.9,0.82944]
[1751409839994,25.202,2411.0,2410.9,3.25407364]
[1751409840294,60.53636,2411.2,2411.0,0.82939]
[1751409840491,25.201,2411.1,2411.0,1.54789]
[1751409840897,26.03037,2411.1,2410.9,0.82943]
[1751409841096,1.408,2411.0,2410.9,0.82943]
[1751409844798,1.408,2411.0,2410.5,3.25417364]
[1751409844799,0.82948,2410.8,2410.5,3.25417364]
[1751409844999,1.3495,2410.7,2410.6,0.82954]
[1751409848402,25.9012,2411.0,2410.9,0.82944]
[1751409848604,25.204,2411.0,2410.9,3.25407364]
[1751409849403,26.5544,2411.0,2410.9,3.25407364]
[1751409849704,1.3504,2411.0,2410.9,3.25407364]
[1751409850205,1.3504,2411.0,2410.9,2.42463364]
[1751409851095,2.0211,2411.0,2410.9,2.42463364]
[1751409851406,2.0211,2411.0,2410.9,3.25407364]
[1751409852709,1.3504,2411.0,2410.9,3.25407364]
[1751409858006,1.3504,2411.0,2410.8,0.7289]
[1751409858208,0.82949,2410.8,2410.6,0.82952]
[1751409858407,1.3598,2410.7,2410.6,0.82952]
[1751409858609,2.18933,2410.7,2410.5,1.50116]
[1751409859008,1.3598,2410.6,2410.5,1.50116]
[1751409859513,2.18934,2410.6,2410.5,1.50116]
[1751409860214,2.18934,2410.6,2410.4,3.25423364]
[1751409860512,1.3311,2410.5,2410.4,3.25423364]
[1751409860706,2.16068,2410.5,2410.4,2.42463364]
[1751409860907,2.16068,2410.5,2410.3,1.54902]
[1751409861112,1.3311,2410.4,2410.3,1.54902]
[1751409862213,2.16071,2410.4,2410.3,0.7194]
[1751409863214,1.3311,2410.4,2410.3,1.54905]
[1751409863914,1.3311,2410.4,2410.3,0.7194]
[1751409864208,2.16071,2410.4,2410.3,0.7194]
[1751409866013,0.82965,2410.3,2410.2,2.42463364]
[1751409866214,2.19595,2410.3,2410.2,2.42463364]
[1751409866615,1.3663,2410.3,2410.2,3.25431364]
[1751409866815,2.19595,2410.3,2410.2,2.42463364]
[1751409869516,2.19595,2410.3,2410.2,3.25431364]
[1751409869717,1.3663,2410.3,2410.2,3.25431364]
[1751409870423,0.82961,2410.4,2410.2,3.25428364]
[1751409870816,0.82961,2410.4,2410.3,1.54795]
[1751409871616,0.82961,2410.4,2410.3,0.7183]
[1751409872213,2.19661,2410.4,2410.3,0.7183]
[1751409872824,0.82965,2410.3,2410.2,2.42463364]
[1751409873126,2.15815,2410.3,2410.2,2.42463364]
[1751409874424,2.15815,2410.3,2410.2,3.25431364]
[1751409875531,2.15815,2410.3,2410.2,2.42463364]
[1751409876533,2.15815,2410.3,2410.2,3.25431364]
[1751409877433,2.15815,2410.3,2410.2,2.42463364]
[1751409879531,2.15815,2410.3,2410.2,3.25431364]
[1751409879734,2.15815,2410.3,2410.2,2.42463364]
[1751409885141,0.82975,2410.0,2409.9,0.82978]
[1751409885447,26.03372,2410.1,2410.0,0.82975]
[1751409885637,26.03372,2410.1,2410.0,3.25438364]
[1751409885839,26.03372,2410.1,2410.0,2.42463364]
[1751409886538,0.7193,2410.4,2410.1,0.8297]
[1751409886742,37.74665,2410.3,2410.1,0.8297]
[1751409886943,37.74665,2410.3,2410.2,0.6988]
[1751409887143,36.917,2410.3,2410.2,1.52848]
[1751409887443,37.74665,2410.3,2410.2,0.6988]
[1751409887946,37.74665,2410.3,2410.2,3.12343364]
[1751409890847,26.03365,2410.3,2410.2,3.12343364]
[1751409891346,25.204,2410.3,2410.2,3.12343364]
[1751409891746,26.03365,2410.3,2410.2,3.12343364]
[1751409892345,25.204,2410.3,2410.2,3.12343364]
[1751409892545,25.204,2410.3,2410.2,3.95311364]
[1751409892748,26.03365,2410.3,2410.2,3.12343364]
[1751409893450,25.204,2410.3,2410.2,3.12343364]
[1751409894353,25.204,2410.3,2410.2,3.95311364]
[1751409896044,26.03365,2410.3,2410.2,3.95311364]
[1751409897352,25.204,2410.3,2410.2,3.95311364]
[1751409897553,26.03365,2410.3,2410.2,3.95311364]
[1751409898251,25.204,2410.3,2410.2,3.95311364]
[1751409899358,26.03365,2410.3,2410.2,3.95311364]
[1751409900058,26.03365,2410.3,2410.2,3.12343364]
[1751409900258,25.204,2410.3,2410.2,3.95311364]
[1751409900559,26.03365,2410.3,2410.2,3.12343364]
[1751409900761,0.82965,2410.3,2410.2,3.12343364]
[1751409901058,26.03165,2410.3,2410.2,3.12343364]
[1751409901461,1.363,2410.6,2410.3,0.82962]
[1751409901758,0.82961,2410.4,2410.3,0.82965]
[1751409902160,37.7456,2410.5,2410.3,0.82965]
[1751409902462,37.7456,2410.5,2410.4,2.42463364]
[1751409903261,37.7456,2410.5,2410.4,3.25424364]
[1751409903461,37.7456,2410.5,2410.4,2.42463364]
[1751409903663,0.8296,2410.5,2410.4,3.25424364]
[1751409903954,37.7446,2410.5,2410.4,3.25424364]
[1751409904160,36.915,2410.5,2410.4,3.25424364]
[1751409904355,13.90657,2410.6,2410.5,0.82958]
[1751409904556,37.74457,2410.6,2410.5,0.82958]
[1751409904856,11.714,2410.6,2410.5,1.53568]
[1751409905066,36.915,2410.6,2410.5,1.53568]
[1751409906463,36.914,2410.6,2410.5,1.53568]
[1751409906661,37.74354,2410.6,2410.5,0.7061]
[1751409906860,37.74354,2410.6,2410.1,3.93412364]
[1751409906861,0.82965,2410.3,2410.1,3.93412364]
[1751409907066,0.82965,2410.3,2410.2,1.55208]
[1751409909269,0.82965,2410.3,2410.2,0.7224]
[1751409910365,2.91845,2410.3,2410.2,0.7224]
[1751409914176,2.0888,2410.3,2410.2,1.55208]
[1751409916168,1.4156,2410.3,2410.2,1.55208]
[1751409917077,2.24525,2410.3,2410.2,0.7224]
[1751409917279,1.4156,2410.3,2410.2,0.7224]
[1751409917475,1.4156,2410.3,2410.2,1.55208]
[1751409919180,2.24525,2410.3,2410.2,0.7224]
[1751409919380,1.4156,2410.3,2410.0,0.6988]
[1751409919581,0.82972,2410.1,2410.0,0.6988]
[1751409919884,2.27071,2410.2,2410.0,1.52855]
[1751409920378,2.27071,2410.2,2410.1,3.14983364]
[1751409920581,1.441,2410.2,2410.1,3.97955364]
[1751409921477,2.27068,2410.2,2410.1,3.14983364]
[1751409921678,1.441,2410.2,2410.1,3.97955364]
[1751409921877,0.82966,2410.3,2410.1,3.97953364]
[1751409922581,0.82968,2410.2,2410.1,3.14983364]
[1751409923476,0.82968,2410.2,2410.1,3.97955364]
[1751409925180,2.26188,2410.3,2410.1,3.97955364]
[1751409927084,2.26188,2410.3,2410.2,0.82968]
[1751409927584,2.26188,2410.3,2410.1,3.97952364]
[1751409927782,0.82968,2410.2,2410.1,3.97952364]
[1751409928185,0.82968,2410.2,2410.1,3.14983364]
[1751409928688,0.82968,2410.2,2410.1,3.97955364]
[1751409928986,2.26187,2410.3,2410.2,0.82968]
[1751409929383,2.26187,2410.3,2410.1,3.97952364]
[1751409930385,0.82968,2410.2,2410.1,3.97952364]
[1751409932382,1.4322,2410.3,2410.1,3.97952364]
[1751409932582,0.82968,2410.2,2410.1,3.97952364]
[1751409934790,37.5727,2410.5,2410.4,0.82961]
[1751409934985,38.40228,2410.5,2410.4,2.42463364]
[1751409935289,39.72528,2410.5,2410.4,3.25424364]
[1751409935590,39.72528,2410.5,2410.4,2.42463364]
[1751409936192,39.72528,2410.5,2410.4,3.25424364]
[1751409936393,39.72528,2410.5,2410.4,2.42463364]
[1751409937793,0.82965,2410.3,2410.2,2.42463364]
[1751409937991,0.82968,2410.2,2410.1,1.55491]
[1751409938199,2.14838,2410.2,2410.1,1.55491]
[1751409938401,2.14838,2410.2,2410.1,0.7252]
[1751409939905,2.14838,2410.2,2410.1,1.55492]
[1751409942506,0.82972,2410.1,2410.0,3.25436364]
[1751409942803,2.27202,2410.1,2410.0,3.25436364]
[1751409944998,1.4423,2410.1,2410.0,3.25436364]
[1751409945210,0.82971,2410.2,2410.1,0.82972]
[1751409947999,0.82967,2410.3,2410.1,0.82972]
[1751409948201,0.82964,2410.4,2410.3,0.82965]
[1751409949705,2.681,2410.7,2410.2,3.14323364]
[1751409949900,71.434,2410.8,2410.6,2.42463364]
[1751409950106,97.45347,2410.8,2410.7,0.6594]
[1751409950400,0.82961,2410.4,2410.2,0.82967]
[1751409950604,4.12139,2410.7,2410.2,3.08403364]
[1751409950804,0.82965,2410.3,2410.2,3.08403364]
[1751409951107,0.82964,2410.4,2410.2,3.91371364]
[1751409952504,26.0196,2410.5,2410.2,3.91371364]
[1751409952716,27.4622,2410.5,2410.2,3.91371364]
[1751409953410,27.4622,2410.5,2410.3,0.82963]
[1751409954408,27.4622,2410.5,2410.4,2.42463364]
[1751409955306,27.4622,2410.5,2410.4,3.25424364]
[1751409955507,27.4622,2410.5,2410.4,2.42463364]
[1751409956108,0.82956,2410.6,2410.4,2.42463364]
[1751409956407,37.72656,2410.6,2410.5,0.82958]
[1751409956608,37.72656,2410.6,2410.5,0.7045]
[1751409958111,37.72656,2410.6,2410.5,1.53408]
[1751409959305,36.897,2410.6,2410.5,1.53408]
[1751409959706,11.709,2410.6,2410.5,1.53408]
[1751409960014,72.7896,2410.8,2410.6,0.82954]
[1751409960213,25.186,2410.7,2410.6,3.25417364]
[1751409961102,26.01551,2410.7,2410.6,3.25417364]
[1751409961307,26.01551,2410.7,2410.6,2.42463364]
[1751409962316,26.01551,2410.7,2410.6,3.25417364]
[1751409965413,26.01351,2410.7,2410.6,3.25417364]
[1751409966317,0.82951,2410.7,2410.6,3.25414364]
[1751409966510,25.183,2410.7,2410.6,3.25417364]
[1751409967613,26.01251,2410.7,2410.6,3.25417364]
[1751409979329,13.8941,2410.8,2410.7,0.82951]
[1751409979527,0.82951,2410.7,2410.6,3.25415364]
[1751409981227,39.0721,2410.8,2410.7,0.82951]
[1751409982726,0.82951,2410.7,2410.6,3.25415364]
[1751409983225,2.16601,2410.7,2410.6,3.25415364]
[1751409988227,0.82954,2410.6,2410.5,1.53406]
[1751409988531,27.38414,2410.6,2410.5,1.53406]
[1751409989527,27.38414,2410.6,2410.5,0.7045]
[1751409989734,0.82965,2410.3,2410.2,2.42463364]
[1751409989927,0.82972,2410.1,2410.0,0.6735]
[1751409990327,2.42463364,2410.1,2409.5,0.7196]
[1751409990532,0.82992,2409.5,2409.4,8.25076851]
[1751409990731,0.82992,2409.5,2409.4,9.08072851]
[1751409990927,0.82992,2409.5,2409.4,3.25459364]
[1751409991330,28.04071,2409.6,2409.4,2.42463364]
[1751409991534,25.174,2409.6,2409.4,2.42463364]
[1751409991832,25.174,2409.6,2409.5,0.82992]
[1751409992437,26.00389,2409.6,2409.4,3.25457364]
[1751409993140,26.00389,2409.6,2409.4,2.42463364]
[1751409993340,26.00389,2409.6,2409.4,3.25458364]
[1751409994039,0.82992,2409.5,2409.4,2.42463364]
[1751409994442,26.0039,2409.6,2409.4,3.25457364]
[1751409995039,25.174,2409.6,2409.5,0.82992]
[1751409995734,25.178,2409.6,2409.4,2.42463364]
[1751409995938,25.178,2409.6,2409.5,0.82989]
[1751409997241,12.53481,2409.9,2409.7,0.82985]
[1751409997442,25.178,2409.8,2409.7,0.82985]
[1751409997634,25.178,2409.8,2409.7,3.25448364]
[1751410000242,11.705,2409.9,2409.8,0.82982]
[1751410000438,36.883,2409.9,2409.8,0.82982]
[1751410001939,11.705,2409.9,2409.8,0.82982]
[1751410002140,36.883,2409.9,2409.8,0.82982]
[1751410002340,2.1209,2410.1,2410.0,0.82975]
[1751410002545,39.0009,2410.1,2410.0,3.25438364]
[1751410002936,0.82997,2409.4,2409.2,0.83001]
[1751410003145,0.82997,2409.4,2408.8,2.07541]
[1751410003146,25.178,2409.3,2408.8,3.43181]
[1751410003344,27.277,2409.3,2409.0,0.83007]
[1751410003846,27.277,2409.3,2409.1,2.42463364]
[1751410004047,0.83003,2409.2,2409.1,2.42463364]
[1751410004546,2.19213,2409.2,2409.1,2.42463364]
[1751410006149,0.83008,2409.1,2408.9,2.42463364]
[1751410006347,1.3621,2409.0,2408.9,2.42463364]
[1751410006548,2.19219,2409.0,2408.9,2.42463364]
[1751410006948,1.3621,2409.0,2408.9,3.25476364]
[1751410009649,1.3621,2409.0,2408.9,2.42463364]
[1751410009849,2.19219,2409.0,2408.9,2.42463364]
[1751410010051,1.3621,2409.0,2408.9,2.42463364]
[1751410010752,2.19219,2409.0,2408.9,2.42463364]
[1751410020857,0.83016,2408.9,2408.7,0.90240356]
[1751410021155,2.24563,2408.9,2408.8,2.42463364]
[1751410024060,2.24563,2408.9,2408.8,3.25479364]
[1751410024764,2.24563,2408.9,2408.8,2.42463364]
[1751410025966,0.83013,2408.9,2408.8,2.42463364]
[1751410028966,0.83013,2408.9,2408.8,3.25479364]
[1751410029561,0.83013,2408.9,2408.8,2.42463364]
[1751410030266,0.8301,2409.0,2408.8,2.42463364]
[1751410030565,0.8301,2409.0,2408.9,2.42463364]
[1751410030767,0.8301,2409.0,2408.9,3.25476364]
[1751410031670,1.4105,2409.4,2408.9,2.42463364]
[1751410031868,2.24046,2409.4,2409.3,2.42463364]
[1751410032566,1.4105,2409.4,2409.0,3.13263364]
[1751410032766,0.83005,2409.2,2409.1,0.83006]
[1751410033063,0.83005,2409.2,2409.0,3.96270364]
[1751410033366,2.22265,2409.2,2409.0,3.96270364]
[1751410034072,0.83006,2409.1,2409.0,3.96270364]
[1751410034371,2.22265,2409.2,2409.0,3.96270364]
[1751410035070,2.22265,2409.2,2409.1,0.83006]
[1751410037271,2.22265,2409.2,2409.0,3.96270364]
[1751410041674,2.22265,2409.2,2409.1,0.83006]
[1751410042174,2.22265,2409.2,2409.0,3.96270364]
[1751410046374,2.22265,2409.2,2409.1,0.83006]
[1751410046875,2.22265,2409.2,2409.0,3.96270364]
[1751410047865,2.22265,2409.2,2409.0,3.13263364]
[1751410048770,2.22265,2409.2,2409.0,3.96270364]
[1751410049979,0.83006,2409.1,2409.0,3.96270364]
[1751410050678,2.22265,2409.2,2409.1,0.83006]
[1751410050880,0.83006,2409.1,2409.0,3.13263364]
[1751410051679,2.22265,2409.2,2409.0,3.96270364]
[1751410054581,0.83006,2409.1,2409.0,3.96270364]
[1751410054877,2.16246,2409.1,2409.0,2.42463364]
[1751410055078,2.16246,2409.1,2409.0,3.25472364]
[1751410055282,2.16246,2409.1,2409.0,2.42463364]
[1751410055471,3.40758,2409.1,2408.7,0.707]
[1751410055675,0.83014,2408.9,2408.8,0.83016]
[1751410060583,0.83014,2408.9,2408.7,3.96180364]
[1751410060784,0.83014,2408.9,2408.8,0.83016]
[1751410060985,2.16252,2409.0,2408.8,0.83016]
[1751410061185,2.16252,2409.0,2408.9,2.42463364]
[1751410061484,0.83012,2409.0,2408.9,2.42463364]
[1751410063386,0.83012,2409.0,2408.9,3.25476364]
[1751410063786,0.83012,2409.0,2408.9,2.42463364]
[1751410064587,0.83012,2409.0,2408.9,3.25476364]
[1751410064983,0.83012,2409.0,2408.9,2.42463364]
[1751410067389,0.83012,2409.0,2408.9,3.25476364]
[1751410068591,0.83008,2409.1,2409.0,0.83009]
[1751410069087,0.83008,2409.1,2409.0,1.49919]
[1751410069484,0.83008,2409.1,2409.0,0.6691]
[1751410069683,0.83008,2409.1,2409.0,1.49919]
[1751410070588,0.83001,2409.3,2409.1,0.83006]
[1751410070788,0.83001,2409.3,2409.2,0.83003]
[1751410071389,0.83002,2409.2,2409.1,3.25466364]
[1751410076892,0.83002,2409.2,2409.1,2.42463364]
[1751410077093,0.83002,2409.2,2409.1,3.25469364]
[1751410077293,2.22572,2409.2,2409.1,3.25469364]
[1751410079590,2.22572,2409.2,2409.1,2.42463364]
[1751410079991,1.3957,2409.2,2409.0,1.49917]
[1751410080199,0.7239,2409.3,2409.0,0.6691]
[1751410080200,2.22536,2409.1,2409.0,0.6691]
[1751410080498,0.83023,2408.7,2408.6,0.83021]
[1751410080692,0.83023,2408.7,2408.6,1.55931]
[1751410080898,0.83019,2408.8,2408.7,0.83017]
[1751410081599,0.83019,2408.8,2408.7,3.25480364]
[1751410081802,0.83019,2408.8,2408.7,2.42463364]
[1751410083999,0.8303,2408.4,2408.3,3.25495364]
[1751410084200,0.8303,2408.4,2408.3,3.91335364]
[1751410084504,0.83028,2408.5,2408.4,0.83029]
[1751410084696,0.83026,2408.6,2408.4,0.83029]
[1751410084995,2.07498,2409.3,2408.5,4.50030364]
[1751410085197,0.83003,2409.2,2409.1,2.42463364]
[1751410085402,37.72303,2409.2,2409.1,2.42463364]
[1751410085600,39.09773,2409.2,2409.1,2.42463364]
[1751410085803,13.91173,2409.2,2409.1,2.42463364]
[1751410086004,39.09973,2409.2,2409.1,2.42463364]
[1751410087905,13.91173,2409.2,2409.1,2.42463364]
[1751410088106,39.09973,2409.2,2409.1,2.42463364]
[1751410091902,0.83006,2409.1,2409.0,1.48849]
[1751410092806,26.01606,2409.1,2409.0,1.48849]
[1751410093004,26.01606,2409.1,2409.0,0.6584]
[1751410098711,27.39196,2409.1,2409.0,0.6584]
[1751410104610,26.5619,2409.1,2408.8,1.52616]
[1751410104818,0.83013,2408.9,2408.8,1.52616]
[1751410105009,25.183,2408.9,2408.8,1.52616]
[1751410105415,26.01313,2408.9,2408.8,0.696]
[1751410105716,26.01313,2408.9,2408.7,3.96720364]
[1751410105717,26.01313,2408.9,2408.7,1.54257]
[1751410106817,0.83016,2408.8,2408.7,0.7124]
[1751410107016,0.83016,2408.8,2408.7,1.5426]
[1751410108013,0.83016,2408.8,2408.7,0.7124]
[1751410108413,0.83016,2408.8,2408.7,1.5426]
[1751410109107,0.83016,2408.8,2408.6,2.42463364]
[1751410109108,0.8302,2408.7,2408.6,2.42463364]
[1751410109312,2.1589,2408.7,2408.6,2.42463364]
[1751410109514,2.1589,2408.7,2408.5,2.23185]
[1751410109912,2.1589,2408.7,2408.6,0.83023]
[1751410111924,1.3287,2408.7,2408.6,0.83023]
[1751410112125,1.3287,2408.7,2408.6,3.25486364]
[1751410112426,0.83019,2408.8,2408.7,0.8302]
[1751410112724,26.01314,2408.9,2408.8,0.83016]
[1751410112924,26.01314,2408.9,2408.8,3.25479364]
[1751410113425,26.01314,2408.9,2408.8,2.42463364]
[1751410114025,26.01314,2408.9,2408.8,3.13303364]
[1751410115427,26.01314,2408.9,2408.8,3.96319364]
[1751410117529,2.07492,2409.4,2409.0,0.83009]
[1751410117731,0.83006,2409.1,2409.0,3.25472364]
[1751410118029,0.83005,2409.2,2409.0,2.42463364]
[1751410118224,0.83005,2409.2,2409.0,3.25470364]
[1751410118427,0.83005,2409.2,2409.1,0.6864]
[1751410118732,25.181,2409.2,2409.1,1.51646]
[1751410119231,0.82998,2409.4,2409.3,0.82999]
[1751410119530,37.71598,2409.4,2409.2,3.25463364]
[1751410120330,0.82999,2409.3,2409.2,3.25463364]
[1751410120528,0.82996,2409.4,2409.3,0.82999]
[1751410120826,12.53486,2409.7,2409.6,0.82989]
[1751410121023,37.71586,2409.7,2409.6,0.82989]
[1751410121529,37.71586,2409.7,2409.6,0.6775]
[1751410122328,37.71586,2409.7,2409.6,1.50739]
[1751410122726,12.53486,2409.7,2409.6,1.50739]
[1751410123031,36.885,2409.7,2409.6,1.50739]
[1751410123226,11.705,2409.7,2409.6,1.50739]
[1751410123426,37.71385,2409.7,2409.6,1.50739]
[1751410124131,0.82989,2409.6,2409.5,3.25453364]
[1751410124431,0.82997,2409.4,2409.3,0.82997]
[1751410124629,0.83001,2409.3,2409.2,0.83001]
[1751410124827,0.83004,2409.2,2409.1,0.83004]
[1751410128233,0.83002,2409.3,2409.1,0.83004]
[1751410128433,2.14792,2409.3,2409.1,0.83004]
[1751410129034,2.14792,2409.3,2409.0,2.42463364]
[1751410129236,2.14792,2409.3,2409.1,0.83003]
[1751410132230,0.83002,2409.2,2409.1,0.83003]
[1751410132432,2.14791,2409.3,2409.1,0.83003]
[1751410134244,2.14791,2409.3,2409.2,0.83002]
[1751410135243,2.14791,2409.3,2409.1,0.83003]
[1751410135845,2.14791,2409.3,2409.2,0.83002]
[1751410136343,1.3179,2409.3,2409.2,0.83002]
[1751410137045,2.14789,2409.3,2409.1,0.83003]
[1751410137246,2.14792,2409.3,2409.1,0.83003]
[1751410137448,2.14792,2409.3,2409.2,0.83002]
[1751410138244,1.3179,2409.3,2409.2,0.83002]
[1751410140348,2.14789,2409.3,2409.2,0.83002]
[1751410140544,2.14789,2409.3,2409.2,3.25465364]
[1751410140745,1.3179,2409.3,2409.2,3.25465364]